[Event "AUT Bundesliga Women 2021-22"]
[Site "Austria"]
[Date "2022.03.27"]
[Round "7.1"]
[White "Zatonskih, Anna"]
[Black "Richterova, Natasa"]
[Result "1-0"]
[ECO "A46"]
[WhiteElo "2403"]
[BlackElo "2162"]
[Annotator "ChessBase"]
[PlyCount "101"]
[EventDate "2021.11.06"]
[EventType "team-tourn"]
[EventCountry "AUT"]
[SourceTitle "playchess.com"]
[Source "ChessBase"]
[SourceQuality "1"]
[TimeControl "40/5400+30:1800+30"]

1. d4 {[%emt 0:00:03]} Nf6 {[%emt 0:01:05]} 2. Nf3 {[%emt 0:01:57]} d5 {[%emt 0:00:27]} 3. c4 {[%emt 0:01:00]} e6 {[%emt 0:00:40]} 4. cxd5 {[%emt 0:07:25]} exd5 {[%emt 0:00:08]} 5. Bg5 {[%emt 0:00:42]} c6 {[%emt 0:04:44]} 6. Nc3 {[%emt 0:03:47]} Be7 {[%emt 0:00:31]} 7. Qc2 {[%emt 0:05:36]} O-O {[%emt 0:02:25]} 8. e3 {[%emt 0:00:54]} Nbd7 {[%emt 0:04:32]} 9. Bd3 {[%emt 0:01:29]} h6 {[%emt 0:00:43]} 10. Bh4 {[%emt 0:01:59]} Re8 {[%emt 0:00:13]} 11. O-O {[%emt 0:04:38]} Ne4 {[%emt 0:05:03]} 12. Bxe7 {[%emt 0:00:33]} Qxe7 {[%emt 0:00:08]} 13. Rab1 {[%emt 0:01:56]} Ndf6 {[%emt 0:11:20]} 14. b4 {[%emt 0:07:11]} a6 {[%emt 0:01:21]} 15. Ne5 {[%emt 0:04:43]} Nxc3 {[%emt 0:06:27]} 16. Qxc3 {[%emt 0:00:05]} Ng4 {[%emt 0:03:11]} 17. Nf3 {[%emt 0:14:01]} Bd7 {[%emt 0:00:31]} 18. a4 {[%emt 0:00:13]} Rac8 {[%emt 0:01:20]} 19. Qc5 {[%emt 0:03:28]} Qxc5 {[%emt 0:16:16]} 20. bxc5 {[%emt 0:01:01]} Rc7 {[%emt 0:00:10]} 21. Rb2 {[%emt 0:02:17]} Bc8 {[%emt 0:00:36]} 22. Rfb1 {[%emt 0:01:31]} g6 {[%emt 0:02:16]} 23. h3 {[%emt 0:01:43]} Nf6 {[%emt 0:00:07]} 24. Kf1 {[%emt 0:00:03]} Kg7 {[%emt 0:00:12]} 25. Ke2 {[%emt 0:01:29]} Nd7 {[%emt 0:04:53]} 26. Kd2 {[%emt 0:02:02]} Re7 {[%emt 0:00:26]} 27. Kc3 {[%emt 0:00:44]} Re8 {[%emt 0:03:51]} 28. Nd2 {[%emt 0:04:57]} f5 {[%emt 0:01:20]} 29. Nf3 {[%emt 0:03:26]} Re6 {[%emt 0:03:05]} 30. Rg1 {[%emt 0:00:27]} Re8 {[%emt 0:06:19]} 31. g4 {[%emt 0:05:13]} fxg4 {[%emt 0:10:25]} 32. Rxg4 {[%emt 0:01:14]} Nf8 {[%emt 0:01:36]} 33. Rg3 {[%emt 0:00:00]} Rf7 {[%emt 0:00:30]} 34. Ne5 {[%emt 0:00:45]} Rf6 {[%emt 0:00:15]} 35. f4 {[%emt 0:00:20]} Kh7 {[%emt 0:03:45]} 36. h4 {[%emt 0:04:17]} h5 {[%emt 0:00:09]} 37. Rg5 {[%emt 0:03:09]} Kh6 {[%emt 0:00:29]} 38. Rbg2 {[%emt 0:00:32]} Bg4 {[%emt 0:03:24]} 39. Kd2 {[%emt 0:00:40]} a5 {[%emt 0:03:04]} 40. Nxg4+ {[%emt 0:01:05]} hxg4 {[%emt 0:00:09]} 41. R2xg4 {[%emt 0:30:14]} Rfe6 {[%emt 0:03:20]} 42. Rg3 {[%emt 0:00:00]} b6 {[%emt 0:00:48]} 43. cxb6 {[%emt 0:00:00]} Rb8 {[%emt 0:00:27]} 44. h5 {[%emt 0:00:00]} Rxb6 {[%emt 0:00:13]} 45. hxg6 {[%emt 0:00:00]} Kg7 {[%emt 0:00:11]} 46. Rh5 {[%emt 0:00:00]} Rb2+ {[%emt 0:01:28]} 47. Kc3 {[%emt 0:00:00]} Rb8 {[%emt 0:00:07]} 48. Re5 {[%emt 0:00:00]} Rb4 {[%emt 0:01:09]} 49. Rxe6 {[%emt 0:00:00]} Nxe6 {[%emt 0:00:06]} 50. f5 {[%emt 0:00:00]} Nf8 {[%emt 0:01:42]} 51. f6+ {[%emt 0:00:00]} 1-0

[Event "AUT Bundesliga Women 2021-22"]
[Site "Austria"]
[Date "2022.03.27"]
[Round "7.2"]
[White "Batyte, Daiva"]
[Black "Papp, Sarah"]
[Result "0-1"]
[ECO "A21"]
[WhiteElo "2105"]
[BlackElo "2301"]
[Annotator "ChessBase"]
[PlyCount "101"]
[EventDate "2021.11.06"]
[EventType "team-tourn"]
[EventCountry "AUT"]
[SourceTitle "playchess.com"]
[Source "ChessBase"]
[SourceQuality "1"]
[TimeControl "40/5400+30:1800+30"]

1. c4 {[%emt 0:00:02]} e5 {[%emt 0:00:04]} 2. Nc3 {[%emt 0:00:14]} Bb4 {[%emt 0:00:05]} 3. Qb3 {[%emt 0:02:11]} Bxc3 {[%emt 0:06:42]} 4. Qxc3 {[%emt 0:01:27]} Nc6 {[%emt 0:01:31]} 5. Nf3 {[%emt 0:05:49]} Qf6 {[%emt 0:03:57]} 6. d3 {[%emt 0:03:23]} d6 {[%emt 0:01:42]} 7. g3 {[%emt 0:08:39]} h6 {[%emt 0:02:17]} 8. Bg2 {[%emt 0:00:54]} Nge7 {[%emt 0:00:16]} 9. e3 {[%emt 0:10:10]} Bg4 {[%emt 0:04:04]} 10. Nd2 {[%emt 0:00:37]} Qe6 {[%emt 0:00:53]} 11. h3 {[%emt 0:04:03]} Bf5 {[%emt 0:06:38]} 12. e4 {[%emt 0:01:05]} Bh7 {[%emt 0:01:23]} 13. Nb3 {[%emt 0:03:11]} a5 {[%emt 0:06:15]} 14. a4 {[%emt 0:00:40]} f5 {[%emt 0:04:38]} 15. h4 {[%emt 0:04:44]} O-O {[%emt 0:02:01]} 16. Be3 {[%emt 0:13:35]} Nb4 {[%emt 0:02:06]} 17. Nxa5 {[%emt 0:11:33]} Nxd3+ {[%emt 0:00:27]} 18. Qxd3 {[%emt 0:00:19]} Rxa5 {[%emt 0:00:07]} 19. b4 {[%emt 0:00:34]} Raa8 {[%emt 0:05:24]} 20. exf5 {[%emt 0:01:55]} Bxf5 {[%emt 0:00:28]} 21. Bd5 {[%emt 0:04:07]} Nxd5 {[%emt 0:02:04]} 22. Qxd5 {[%emt 0:00:09]} Qxd5 {[%emt 0:00:13]} 23. cxd5 {[%emt 0:00:24]} Be4 {[%emt 0:01:21]} 24. Rg1 {[%emt 0:03:09]} Bxd5 {[%emt 0:01:06]} 25. a5 {[%emt 0:00:27]} Bc4 {[%emt 0:03:49]} 26. Kd2 {[%emt 0:01:09]} d5 {[%emt 0:01:00]} 27. f4 {[%emt 0:03:56]} d4 {[%emt 0:06:21]} 28. Bf2 {[%emt 0:00:38]} Ra6 {[%emt 0:05:13]} 29. Rac1 {[%emt 0:04:44]} Rc6 {[%emt 0:02:01]} 30. Rg2 {[%emt 0:01:15]} exf4 {[%emt 0:04:17]} 31. gxf4 {[%emt 0:02:53]} Rxf4 {[%emt 0:04:46]} 32. Rcg1 {[%emt 0:02:33]} Kh8 {[%emt 0:06:32]} 33. Rh2 {[%emt 0:01:20]} d3 {[%emt 0:03:25]} 34. Be3 {[%emt 0:01:15]} Re4 {[%emt 0:02:16]} 35. Bc5 {[%emt 0:02:08]} Re2+ {[%emt 0:01:50]} 36. Rxe2 {[%emt 0:00:19]} dxe2 {[%emt 0:00:05]} 37. Bf8 {[%emt 0:00:22]} g6 {[%emt 0:00:39]} 38. Bxh6 {[%emt 0:00:17]} Rd6+ {[%emt 0:02:43]} 39. Kc1 {[%emt 0:00:52]} Rf6 {[%emt 0:04:22]} 40. Re1 {[%emt 0:00:28]} Rf3 {[%emt 0:01:32]} 41. Bd2 {[%emt 0:30:56]} Rh3 {[%emt 0:31:04]} 42. Rg1 {[%emt 0:00:00]} Rxh4 {[%emt 0:00:00]} 43. Be1 {[%emt 0:00:00]} Rh6 {[%emt 0:00:00]} 44. Rg5 {[%emt 0:00:00]} c6 {[%emt 0:00:00]} 45. Rg4 {[%emt 0:00:00]} Ba6 {[%emt 0:00:00]} 46. Kd2 {[%emt 0:00:00]} Kh7 {[%emt 0:00:00]} 47. Rh4 {[%emt 0:00:00]} Rxh4 {[%emt 0:00:00]} 48. Bxh4 {[%emt 0:00:00]} Kh6 {[%emt 0:00:00]} 49. Ke3 {[%emt 0:00:00]} Kh5 {[%emt 0:00:00]} 50. Be1 {[%emt 0:00:00]} Kg4 {[%emt 0:00:00]} 51. Ke4 {[%emt 0:00:00]} 0-1

[Event "AUT Bundesliga Women 2021-22"]
[Site "Austria"]
[Date "2022.03.27"]
[Round "7.3"]
[White "Worek, Joanna"]
[Black "Mar, Karmen"]
[Result "1-0"]
[ECO "B84"]
[WhiteElo "2267"]
[BlackElo "2074"]
[Annotator "ChessBase"]
[PlyCount "41"]
[EventDate "2021.11.06"]
[EventType "team-tourn"]
[EventCountry "AUT"]
[SourceTitle "playchess.com"]
[Source "ChessBase"]
[SourceQuality "1"]
[TimeControl "40/5400+30:1800+30"]

1. e4 {[%emt 0:00:03]} c5 {[%emt 0:00:10]} 2. Nf3 {[%emt 0:00:05]} d6 {[%emt 0:00:12]} 3. d4 {[%emt 0:00:06]} cxd4 {[%emt 0:00:14]} 4. Nxd4 {[%emt 0:00:08]} Nf6 {[%emt 0:00:37]} 5. Nc3 {[%emt 0:00:08]} a6 {[%emt 0:00:16]} 6. Be2 {[%emt 0:00:12]} e6 {[%emt 0:00:22]} 7. Be3 {[%emt 0:00:07]} Be7 {[%emt 0:00:19]} 8. f4 {[%emt 0:02:12]} Qc7 {[%emt 0:02:06]} 9. g4 {[%emt 0:03:24]} h6 {[%emt 0:24:21]} 10. h4 {[%emt 0:21:55]} g6 {[%emt 0:15:28]} 11. h5 {[%emt 0:06:11]} gxh5 {[%emt 0:04:55]} 12. g5 {[%emt 0:01:41]} Nh7 {[%emt 0:22:47]} 13. Bxh5 {[%emt 0:06:31]} hxg5 {[%emt 0:04:15]} 14. Bxf7+ {[%emt 0:07:10]} Kxf7 {[%emt 0:03:38]} 15. Qh5+ {[%emt 0:00:10]} Kf8 {[%emt 0:02:57]} 16. fxg5 {[%emt 0:03:26]} Bf6 {[%emt 0:01:39]} 17. gxf6 {[%emt 0:00:54]} Qf7 {[%emt 0:01:59]} 18. Bh6+ {[%emt 0:01:29]} Ke8 {[%emt 0:00:10]} 19. Bg7 {[%emt 0:00:20]} Qxh5 {[%emt 0:02:06]} 20. Rxh5 {[%emt 0:00:15]} Rg8 {[%emt 0:00:08]} 21. Rxh7 {[%emt 0:00:08]} 1-0

[Event "AUT Bundesliga Women 2021-22"]
[Site "Austria"]
[Date "2022.03.27"]
[Round "7.4"]
[White "Saler-Grafenberger, Elisabeth"]
[Black "Theissl-Pokorna, Regina"]
[Result "0-1"]
[ECO "E18"]
[WhiteElo "1828"]
[BlackElo "2296"]
[Annotator "ChessBase"]
[PlyCount "94"]
[EventDate "2021.11.06"]
[EventType "team-tourn"]
[EventCountry "AUT"]
[SourceTitle "playchess.com"]
[Source "ChessBase"]
[SourceQuality "1"]
[TimeControl "40/5400+30:1800+30"]

1. d4 Nf6 2. Nf3 e6 3. c4 b6 4. g3 Bb7 5. Bg2 Be7 6. O-O O-O 7. Nc3 Ne4 8. Nxe4 Bxe4 9. b3 f5 10. Bb2 Bf6 11. Qd2 d6 12. Rad1 Nd7 13. Ne1 Bxg2 14. Nxg2 Qe8 15. Qd3 Qf7 16. Ba3 Be7 17. Bc1 Rad8 18. e4 e5 19. exf5 Qxf5 20. Qxf5 Rxf5 21. Ne3 Rf7 22. Nd5 c6 23. Nxe7+ Rxe7 24. Bg5 Nf6 25. dxe5 Rxe5 26. Bxf6 gxf6 27. Rd2 Kf7 28. Rfd1 Ke6 29. f4 Re4 30. Kf2 f5 31. Kf3 h5 32. h3 d5 33. cxd5+ cxd5 34. Rc2 d4 35. Rc6+ Rd6 36. Rc7 Re3+ 37. Kf2 Kd5 38. Rf7 Rde6 39. Rxf5+ Ke4 40. Rxh5 d3 41. Rd2 Kd4 42. Rh7 Kc3 43. Rxd3+ Rxd3 44. Rxa7 Kd2 45. Rg7 Re2+ 46. Kf1 Rf3+ 47. Kg1 Ke1 0-1

[Event "AUT Bundesliga Women 2021-22"]
[Site "Austria"]
[Date "2022.03.27"]
[Round "7.5"]
[White "Mihok-Juhasz, Barbara"]
[Black "Landl, Margot"]
[Result "1-0"]
[ECO "A04"]
[WhiteElo "2275"]
[BlackElo "2043"]
[Annotator "ChessBase"]
[PlyCount "83"]
[EventDate "2021.11.06"]
[EventType "team-tourn"]
[EventCountry "AUT"]
[SourceTitle "playchess.com"]
[Source "ChessBase"]
[SourceQuality "1"]
[TimeControl "40/5400+30:1800+30"]

1. Nf3 {[%emt 0:00:04]} f5 {[%emt 0:00:13]} 2. d3 {[%emt 0:00:05]} d6 {[%emt 0:00:27]} 3. e4 {[%emt 0:00:20]} e5 {[%emt 0:00:18]} 4. Nc3 {[%emt 0:00:55]} Nc6 {[%emt 0:00:22]} 5. d4 {[%emt 0:18:47]} exd4 {[%emt 0:41:16]} 6. Nxd4 {[%emt 0:00:22]} Nxd4 {[%emt 0:03:05]} 7. Qxd4 {[%emt 0:00:07]} Nf6 {[%emt 0:04:49]} 8. Bg5 {[%emt 0:26:13]} Be7 {[%emt 0:02:05]} 9. Bc4 {[%emt 0:00:56]} h6 {[%emt 0:07:36]} 10. Bd2 {[%emt 0:06:02]} fxe4 {[%emt 0:03:53]} 11. Nxe4 {[%emt 0:11:03]} c6 {[%emt 0:02:53]} 12. Nxf6+ {[%emt 0:16:23]} Bxf6 {[%emt 0:00:11]} 13. Qe3+ {[%emt 0:00:11]} Qe7 {[%emt 0:00:57]} 14. Qxe7+ {[%emt 0:00:33]} Kxe7 {[%emt 0:00:59]} 15. O-O-O {[%emt 0:00:08]} d5 {[%emt 0:03:02]} 16. Bd3 {[%emt 0:00:30]} Kf7 {[%emt 0:00:52]} 17. Rde1 {[%emt 0:02:18]} Bd7 {[%emt 0:06:50]} 18. h4 {[%emt 0:03:01]} h5 {[%emt 0:03:01]} 19. c4 {[%emt 0:03:38]} Be6 {[%emt 0:00:58]} 20. c5 {[%emt 0:06:00]} b6 {[%emt 0:01:34]} 21. Bg6+ {[%emt 0:00:31]} Kxg6 {[%emt 0:00:25]} 22. Rxe6 {[%emt 0:00:03]} Rac8 {[%emt 0:06:27]} 23. cxb6 {[%emt 0:00:14]} axb6 {[%emt 0:00:08]} 24. Rhe1 {[%emt 0:00:40]} Rc7 {[%emt 0:04:34]} 25. Bf4 {[%emt 0:00:28]} Rcc8 {[%emt 0:00:38]} 26. Bg5 {[%emt 0:01:48]} Rhf8 27. f4 {[%emt 0:00:32]} Kf5 {[%emt 0:04:07]} 28. g3 {[%emt 0:01:17]} Bxg5 {[%emt 0:00:55]} 29. R1e5+ {[%emt 0:00:06]} Kg4 {[%emt 0:00:17]} 30. Rxg5+ {[%emt 0:00:06]} Kf3 {[%emt 0:00:35]} 31. Rxg7 {[%emt 0:00:26]} Rfe8 {[%emt 0:00:33]} 32. f5 {[%emt 0:01:12]} Rxe6 {[%emt 0:01:00]} 33. fxe6 {[%emt 0:00:01]} Re8 {[%emt 0:00:13]} 34. e7 {[%emt 0:00:12]} c5 {[%emt 0:00:18]} 35. b3 {[%emt 0:01:10]} d4 {[%emt 0:01:00]} 36. Kd2 {[%emt 0:00:07]} b5 {[%emt 0:01:02]} 37. Kd3 {[%emt 0:00:09]} Kf2 {[%emt 0:00:51]} 38. a3 {[%emt 0:01:33]} Kg2 {[%emt 0:00:04]} 39. b4 {[%emt 0:00:14]} c4+ {[%emt 0:00:47]} 40. Kxd4 {[%emt 0:00:04]} Rc8 {[%emt 0:00:23]} 41. Kc3 {[%emt 0:05:30]} Kh3 {[%emt 0:00:26]} 42. Rg5 {[%emt 0:01:36]} 1-0

[Event "AUT Bundesliga Women 2021-22"]
[Site "Austria"]
[Date "2022.03.27"]
[Round "7.6"]
[White "Truszkiewicz, Eliza"]
[Black "Miturova, Magdalena"]
[Result "0-1"]
[ECO "C50"]
[WhiteElo "1897"]
[BlackElo "2205"]
[Annotator "ChessBase"]
[PlyCount "42"]
[EventDate "2021.11.06"]
[EventType "team-tourn"]
[EventCountry "AUT"]
[SourceTitle "playchess.com"]
[Source "ChessBase"]
[SourceQuality "1"]
[TimeControl "40/5400+30:1800+30"]

1. e4 e5 2. Nf3 Nc6 3. Bc4 Nf6 4. d3 Bc5 5. Bg5 h6 6. Bh4 Be7 7. Bg3 d6 8. h3 O-O 9. Nbd2 Na5 10. Bb3 Nxb3 11. axb3 Nh7 12. Nf1 f5 13. exf5 Bxf5 14. Ne3 Be6 15. O-O Qe8 16. Kh1 Nf6 17. Bh2 Nh5 18. d4 exd4 19. Nxd4 Bd7 20. Nd5 Bd8 21. Qe2 Bxh3 0-1

[Event "AUT Bundesliga Women 2021-22"]
[Site "Austria"]
[Date "2022.03.27"]
[Round "7.7"]
[White "Exler, Veronika"]
[Black "Zechner, Andrea"]
[Result "1-0"]
[ECO "C00"]
[WhiteElo "2089"]
[BlackElo "1851"]
[Annotator "ChessBase"]
[PlyCount "77"]
[EventDate "2021.11.06"]
[EventType "team-tourn"]
[EventCountry "AUT"]
[SourceTitle "playchess.com"]
[Source "ChessBase"]
[SourceQuality "1"]
[TimeControl "40/5400+30:1800+30"]

1. e4 {[%emt 0:00:01]} e6 {[%emt 0:00:09]} 2. d4 {[%emt 0:00:04]} d5 {[%emt 0:00:03]} 3. Bd3 {[%emt 0:00:04]} c5 {[%emt 0:08:02]} 4. exd5 {[%emt 0:00:06]} exd5 {[%emt 0:04:29]} 5. Nf3 {[%emt 0:00:05]} Nf6 {[%emt 0:02:58]} 6. O-O {[%emt 0:00:08]} Nc6 {[%emt 0:09:52]} 7. Re1+ {[%emt 0:02:03]} Be7 {[%emt 0:03:26]} 8. dxc5 {[%emt 0:33:25]} O-O {[%emt 0:02:44]} 9. c3 {[%emt 0:00:38]} Bxc5 {[%emt 0:02:15]} 10. Be3 {[%emt 0:01:09]} Bd6 {[%emt 0:05:25]} 11. Qc2 {[%emt 0:08:13]} Bg4 {[%emt 0:04:04]} 12. Nbd2 {[%emt 0:00:06]} Qc7 {[%emt 0:12:12]} 13. Bg5 {[%emt 0:11:33]} h6 {[%emt 0:10:39]} 14. Bxf6 {[%emt 0:00:22]} gxf6 {[%emt 0:00:01]} 15. Bf5 {[%emt 0:06:54]} Bxf5 {[%emt 0:03:46]} 16. Qxf5 {[%emt 0:00:02]} Ne5 {[%emt 0:02:59]} 17. Qxf6 {[%emt 0:27:00]} Rae8 {[%emt 0:08:24]} 18. Qxh6 {[%emt 0:03:48]} Re6 {[%emt 0:00:31]} 19. Qh3 {[%emt 0:00:48]} Kg7 {[%emt 0:02:09]} 20. Nxe5 {[%emt 0:00:58]} Bxe5 {[%emt 0:00:31]} 21. g3 {[%emt 0:01:09]} Rh8 {[%emt 0:01:10]} 22. Qf5 {[%emt 0:02:07]} Rhh6 {[%emt 0:03:39]} 23. Nf3 {[%emt 0:00:29]} Bd6 {[%emt 0:01:53]} 24. Qxd5 {[%emt 0:00:36]} Ref6 {[%emt 0:00:51]} 25. Nd4 {[%emt 0:00:23]} Rhg6 {[%emt 0:02:14]} 26. Nf5+ {[%emt 0:00:33]} Kf8 {[%emt 0:01:07]} 27. Nxd6 {[%emt 0:00:13]} Rxd6 {[%emt 0:00:08]} 28. Qe5 {[%emt 0:00:37]} Qc6 {[%emt 0:02:59]} 29. Rad1 {[%emt 0:00:43]} Rde6 {[%emt 0:00:39]} 30. Qh8+ {[%emt 0:00:28]} Rg8 {[%emt 0:00:15]} 31. Rd8+ {[%emt 0:00:33]} Ke7 {[%emt 0:00:38]} 32. Rxe6+ {[%emt 0:00:13]} Qxe6 {[%emt 0:00:24]} 33. Qh4+ {[%emt 0:00:37]} f6 {[%emt 0:00:39]} 34. Rd4 {[%emt 0:00:45]} Kf7 {[%emt 0:02:21]} 35. Qh7+ {[%emt 0:00:26]} Rg7 {[%emt 0:00:17]} 36. Qh5+ {[%emt 0:00:04]} Ke7 {[%emt 0:01:41]} 37. Qb5 {[%emt 0:00:32]} b6 {[%emt 0:01:33]} 38. Qd3 {[%emt 0:00:10]} Rg5 {[%emt 0:00:55]} 39. f4 {[%emt 0:00:55]} 1-0

[Event "AUT Bundesliga Women 2021-22"]
[Site "Austria"]
[Date "2022.03.27"]
[Round "7.8"]
[White "Mattersberger, Melanie"]
[Black "Moerwald, Magdalena"]
[Result "0-1"]
[ECO "B10"]
[WhiteElo "1763"]
[BlackElo "1895"]
[Annotator "NA"]
[PlyCount "106"]
[EventDate "2021.11.06"]
[EventType "team-tourn"]
[EventCountry "AUT"]
[SourceTitle "playchess.com"]
[Source "ChessBase"]
[SourceQuality "1"]
[TimeControl "40/5400+30:1800+30"]

1. e4 {[%emt 0:00:02]} c6 {[%emt 0:00:08]} 2. Nc3 {[%emt 0:00:05]} d5 {[%emt 0:00:14]} 3. Nf3 {[%emt 0:00:04]} dxe4 {[%emt 0:00:25]} 4. Nxe4 {[%emt 0:00:05]} Nf6 {[%emt 0:00:25]} 5. Qe2 {[%emt 0:00:06]} Nxe4 {[%emt 0:00:27]} 6. Qxe4 {[%emt 0:00:05]} Qd5 {[%emt 0:02:03]} 7. d3 {[%emt 0:00:36]} Nd7 {[%emt 0:05:29]} 8. g3 {[%emt 0:09:28]} Nf6 {[%emt 0:03:32]} 9. Qxd5 {[%emt 0:00:32]} Nxd5 {[%emt 0:03:43]} 10. a3 {[%emt 0:00:07]} g6 {[%emt 0:03:38]} 11. Bg2 {[%emt 0:00:30]} Bg7 {[%emt 0:00:37]} 12. O-O {[%emt 0:02:30]} O-O {[%emt 0:02:22]} 13. Re1 {[%emt 0:00:46]} Re8 {[%emt 0:04:56]} 14. Rb1 {[%emt 0:05:16]} Bf5 {[%emt 0:02:23]} 15. Bg5 {[%emt 0:01:58]} h6 {[%emt 0:02:30]} 16. Bd2 {[%emt 0:00:12]} Rad8 {[%emt 0:06:02]} (16... e5 $142) 17. h3 {[%emt 0:07:45]} Nc7 {[%emt 0:08:32]} 18. Bb4 $11 Be6 19. Ne5 Bd5 20. Ba5 b6 21. Nxc6 Bxc6 22. Bxc6 bxa5 23. Bxe8 Rxe8 24. c3 e6 25. Re4 Rb8 26. Rc4 Nb5 27. Re1 Nd6 28. Rc6 Nf5 29. Re2 Rd8 30. Rd2 h5 31. Kg2 Bh6 32. Rd1 Rb8 33. b4 axb4 34. axb4 Ne7 35. Rc7 Nd5 36. Rc6 Rb6 37. Rc8+ Kg7 38. Ra1 Bd2 39. c4 Nxb4 40. Rxa7 Nc6 41. Rac7 Nd4 42. Rd7 e5 43. Rcc7 Rf6 44. Rc5 Nf3 45. h4 Bc3 46. Rb5 Bd4 47. c5 Ne1+ 48. Kh3 Rxf2 49. c6 Rf1 50. g4 Rh1+ 51. Kg3 Rg1+ 52. Kh2 Nf3+ 53. Kh3 hxg4# 0-1

[Event "AUT Bundesliga Women 2021-22"]
[Site "Austria"]
[Date "2022.03.27"]
[Round "7.9"]
[White "Schnegg, Anna-Lena"]
[Black "Hercog, Nusa"]
[Result "1/2-1/2"]
[ECO "B19"]
[WhiteElo "2177"]
[BlackElo "1989"]
[Annotator "ChessBase"]
[PlyCount "70"]
[EventDate "2021.11.06"]
[EventType "team-tourn"]
[EventCountry "AUT"]
[SourceTitle "playchess.com"]
[Source "ChessBase"]
[SourceQuality "1"]
[TimeControl "40/5400+30:1800+30"]

1. e4 {[%emt 0:00:08]} c6 {[%emt 0:00:12]} 2. d4 {[%emt 0:01:57]} d5 {[%emt 0:00:06]} 3. Nc3 {[%emt 0:00:34]} dxe4 {[%emt 0:00:13]} 4. Nxe4 {[%emt 0:00:07]} Bf5 {[%emt 0:00:11]} 5. Ng3 {[%emt 0:01:38]} Bg6 {[%emt 0:00:13]} 6. Nf3 {[%emt 0:00:50]} Nd7 {[%emt 0:00:32]} 7. h4 {[%emt 0:02:07]} h6 {[%emt 0:00:14]} 8. h5 {[%emt 0:00:50]} Bh7 {[%emt 0:01:04]} 9. Bd3 {[%emt 0:00:13]} Bxd3 {[%emt 0:00:06]} 10. Qxd3 {[%emt 0:00:05]} e6 {[%emt 0:00:10]} 11. Bd2 {[%emt 0:06:46]} Ngf6 {[%emt 0:00:28]} 12. Qe2 {[%emt 0:06:17]} Be7 {[%emt 0:03:27]} 13. c4 {[%emt 0:06:08]} O-O {[%emt 0:07:30]} 14. Bc3 {[%emt 0:04:28]} Qc7 {[%emt 0:07:05]} 15. O-O {[%emt 0:10:12]} Bd6 {[%emt 0:10:16]} 16. Ne5 {[%emt 0:01:12]} c5 {[%emt 0:04:55]} 17. Nxd7 {[%emt 0:06:54]} Nxd7 {[%emt 0:01:55]} 18. Ne4 {[%emt 0:06:09]} cxd4 {[%emt 0:03:02]} 19. Bxd4 {[%emt 0:01:06]} Be5 {[%emt 0:04:12]} 20. Rad1 {[%emt 0:06:27]} Rfd8 {[%emt 0:08:53]} 21. b3 {[%emt 0:03:04]} Bxd4 {[%emt 0:11:11]} 22. Rxd4 {[%emt 0:00:13]} Ne5 {[%emt 0:00:17]} 23. Rfd1 {[%emt 0:02:57]} Rxd4 {[%emt 0:04:35]} 24. Rxd4 {[%emt 0:01:18]} Nc6 {[%emt 0:00:25]} 25. Rd2 {[%emt 0:07:43]} Rd8 {[%emt 0:02:01]} 26. Rxd8+ {[%emt 0:04:29]} Qxd8 {[%emt 0:00:11]} 27. Qd2 {[%emt 0:00:48]} Nd4 {[%emt 0:06:17]} 28. Qe3 {[%emt 0:06:38]} Nf5 {[%emt 0:05:54]} 29. Qd2 {[%emt 0:02:23]} Nd4 {[%emt 0:00:29]} 30. Qe3 {[%emt 0:01:30]} Nc6 {[%emt 0:00:00]} 31. Qd2 {[%emt 0:00:00]} Nd4 {[%emt 0:00:00]} 32. Qe3 {[%emt 0:00:00]} Nf5 {[%emt 0:01:31]} 33. Qd2 {[%emt 0:00:30]} Nd4 {[%emt 0:00:29]} 34. Qe3 {[%emt 0:01:30]} Nf5 {[%emt 0:00:45]} 35. Qd2 {[%emt 0:02:16]} Nd4 {[%emt 0:02:38]} 1/2-1/2

[Event "AUT Bundesliga Women 2021-22"]
[Site "Austria"]
[Date "2022.03.27"]
[Round "7.10"]
[White "Mihelic, Vesna"]
[Black "Mayrhuber, Nikola"]
[Result "1/2-1/2"]
[ECO "B53"]
[WhiteElo "1875"]
[BlackElo "2118"]
[Annotator "NA"]
[PlyCount "118"]
[EventDate "2021.11.06"]
[EventType "team-tourn"]
[EventCountry "AUT"]
[SourceTitle "playchess.com"]
[Source "ChessBase"]
[SourceQuality "1"]
[TimeControl "40/5400+30:1800+30"]

1. e4 {[%emt 0:00:03]} c5 {[%emt 0:00:05]} 2. Nf3 {[%emt 0:00:06]} d6 {[%emt 0:00:05]} 3. d4 {[%emt 0:00:07]} cxd4 {[%emt 0:00:04]} 4. Qxd4 {[%emt 0:00:07]} Nf6 {[%emt 0:00:07]} 5. e5 {[%emt 0:00:09]} Nc6 {[%emt 0:02:29]} 6. Bb5 {[%emt 0:00:12]} Qa5+ {[%emt 0:14:31]} 7. Nc3 {[%emt 0:00:10]} Qxb5 {[%emt 0:07:56]} 8. Nxb5 {[%emt 0:00:09]} Nxd4 {[%emt 0:00:06]} 9. Nbxd4 {[%emt 0:00:21]} dxe5 {[%emt 0:07:16]} 10. Nxe5 {[%emt 0:00:11]} Nd5 {[%emt 0:02:49]} 11. c4 {[%emt 0:05:07]} Nc7 {[%emt 0:02:17]} 12. f4 {[%emt 0:05:41]} f6 {[%emt 0:03:01]} 13. Nef3 {[%emt 0:04:52]} h6 {[%emt 0:11:15]} 14. O-O {[%emt 0:04:02]} g5 {[%emt 0:00:45]} 15. Re1 {[%emt 0:01:30]} Kf7 {[%emt 0:02:55]} 16. f5 {[%emt 0:08:58]} e5 {[%emt 0:04:08]} 17. fxe6+ {[%emt 0:00:12]} Nxe6 {[%emt 0:00:11]} 18. Be3 {[%emt 0:01:43]} Bb4 {[%emt 0:04:01]} 19. Red1 {[%emt 0:01:00]} Re8 {[%emt 0:03:23]} (19... Nxd4 $15 20. Nxd4 Rd8) 20. a3 {[%emt 0:01:58]} Bc5 {[%emt 0:04:54]} 21. b4 {[%emt 0:01:11]} Nxd4 {[%emt 0:00:52]} 22. Bxd4 {[%emt 0:00:13]} Bxd4+ {[%emt 0:01:25]} 23. Nxd4 $11 {[%emt 0:00:15]} Bd7 24. Rd3 Rad8 25. Rad1 Ba4 26. R1d2 Kg6 27. Kf2 Re4 28. c5 Rf4+ 29. Ke2 Re8+ 30. Re3 Rd8 31. Red3 Bd7 32. Ne6 Re8 33. Rxd7 Rxe6+ 34. Kd1 Rf1+ 35. Kc2 b6 36. Rxa7 bxc5 37. bxc5 Rc6 38. Ra5 Rf5 39. Kb3 Rfxc5 40. Rxc5 Rxc5 41. a4 f5 42. Kb4 Rc1 43. Ra2 Rb1+ 44. Kc5 Rc1+ 45. Kb4 Rb1+ 46. Ka3 f4 47. a5 g4 48. a6 Rb8 49. Ka4 Kf5 50. Ra3 Ke4 51. h3 f3 52. hxg4 fxg2 53. Rg3 Rb2 54. a7 Ra2+ 55. Ra3 Rxa3+ 56. Kxa3 g1=Q 57. a8=Q+ Kf4 58. Qf8+ Kg3 59. Qd6+ Kg2 1/2-1/2